bitfinex/quotes_ETHUSD_20250923
["timestamp","ask_amount","ask_price","bid_price","bid_amount"]
[1758597149924,0.1208,4127.3,4127.1,0.02]
[1758597150621,0.1208,4127.3,4127.1,2.44300265]
[1758597150847,0.1208,4127.3,4127.1,0.02]
[1758597151215,0.1208,4127.3,4127.1,2.89480611]
[1758597151216,4.545,4127.2,4127.1,2.89480611]
[1758597151718,0.1208,4127.3,4127.2,2.42295018]
[1758597151919,4.6688,4127.3,4127.2,3.11255018]
[1758597152230,0.1208,4127.3,4127.2,3.11255018]
[1758597152415,0.2385,4128.6,4127.2,0.6896]
[1758597152620,0.4532,4128.8,4127.2,0.6896]
[1758597152621,2.095,4128.5,4127.2,0.6896]
[1758597152854,0.1208,4128.0,4127.9,2.42253668]
[1758597153161,0.248,4128.7,4128.1,2.4223681]
[1758597153312,2.095,4129.0,4127.1,0.02]
[1758597153313,0.248,4128.6,4127.1,0.02]
[1758597153529,0.792,4128.5,4127.1,0.02]
[1758597153760,0.792,4128.3,4127.1,0.02]
[1758597153977,2.095,4128.2,4127.1,0.02]
[1758597154264,0.35787,4128.1,4127.1,0.02]
[1758597154450,5.2427,4128.0,4127.1,0.02]
[1758597155570,16.24151187,4129.2,4127.1,0.02]
[1758597155571,0.2385,4128.5,4127.1,0.02]
[1758597155725,1.455,4130.6,4127.1,0.02]
[1758597155726,0.02,4131.9,4127.4,2.42283277]
[1758597155932,0.02,4131.9,4131.6,3.42036983]
[1758597156173,0.02,4131.9,4131.8,2.42025267]
[1758597156742,0.02,4131.9,4131.8,3.10985267]
[1758597157190,0.001,4133.4,4132.8,2.41966705]
[1758597157358,2.095,4133.3,4132.8,3.41966705]
[1758597159941,2.095,4133.3,4132.8,3.44386372]
[1758597160158,2.095,4133.3,4132.8,3.41966705]
[1758597160575,0.001,4133.4,4132.8,4.03066705]
[1758597160735,0.001,4133.4,4132.8,4.13346372]
[1758597160934,0.001,4133.4,4132.8,4.10926705]
[1758597161970,0.001,4133.4,4132.8,4.13346372]
[1758597162200,1e-08,4134.2,4134.1,2.41890617]
[1758597162474,0.001,4134.7,4134.1,2.41890617]
[1758597162475,0.001,4134.7,4134.6,3.41861365]
[1758597163355,0.001,4134.7,4134.6,3.53941365]
[1758597163574,0.001,4134.7,4134.6,3.41861365]
[1758597164472,0.001,4134.7,4134.6,4.10821365]
[1758597164819,0.001,4134.7,4134.6,4.22901365]
[1758597167001,1e-08,4134.9,4134.8,2.41849666]
[1758597167145,1e-08,4134.9,4134.8,9.40049666]
[1758597167344,1e-08,4134.9,4134.8,13.85239666]
[1758597167845,1e-08,4134.9,4134.8,10.96439666]
[1758597168079,1e-08,4134.9,4134.8,3.07839666]
[1758597168643,1e-08,4134.9,4134.8,7.96039666]
[1758597169475,1e-08,4134.9,4134.8,2.41849666]
[1758597170122,1e-08,4134.9,4134.8,3.41849666]
[1758597171027,1e-08,4134.9,4134.8,1.0]
[1758597171176,1e-08,4134.9,4133.6,0.2317]
[1758597171524,1e-08,4134.9,4134.6,2.41860601]
[1758597171822,1e-08,4134.9,4134.0,3.0]
[1758597171974,1e-08,4134.9,4134.6,2.41859845]
[1758597172175,1e-08,4134.9,4134.1,2.41890617]
[1758597172575,1e-08,4134.9,4133.6,0.2317]
[1758597172802,1e-08,4134.9,4134.8,1.0]
[1758597173006,1e-08,4134.9,4134.8,2.41849666]
[1758597173613,1e-08,4134.9,4134.8,3.41849666]
[1758597174509,1e-08,4134.9,4134.7,2.41850437]
[1758597174709,1e-08,4134.9,4134.8,1.02418496]
[1758597174907,1e-08,4134.9,4134.8,3.44268162]
[1758597175275,1e-08,4134.9,4134.8,2.44268162]
[1758597175475,1e-08,4134.9,4133.6,0.4282]
[1758597175681,0.14550001,4134.9,4133.7,7.842]
[1758597175905,1e-08,4134.9,4134.8,1.0]
[1758597176093,1e-08,4134.9,4134.8,3.41849666]
[1758597176301,1e-08,4134.9,4134.8,1.0]
[1758597176502,1e-08,4134.9,4134.8,1.02418496]
[1758597176716,1e-08,4134.9,4134.8,3.41849666]
[1758597176916,1e-08,4134.9,4134.8,3.53929666]
[1758597177784,1e-08,4134.9,4134.8,4.19919666]
[1758597178188,0.00100001,4134.9,4134.8,4.19919666]
[1758597178522,0.00100001,4134.9,4134.8,3.53929666]
[1758597179020,0.14650001,4134.9,4134.6,2.42256639]
[1758597179433,0.14650001,4134.9,4134.6,0.004]
[1758597179785,0.00100001,4134.9,4134.6,0.004]
[1758597180028,0.14650001,4134.9,4134.6,0.004]
[1758597180230,0.30620001,4134.9,4134.6,0.004]
[1758597180386,0.30620001,4134.9,4134.6,1.004]
[1758597180892,0.14650001,4134.9,4134.6,0.004]
[1758597181512,0.00100001,4134.9,4134.6,2.42261219]
[1758597181728,0.00100001,4134.9,4134.8,3.41849666]
[1758597182590,0.00100001,4134.9,4134.8,3.84669666]
[1758597182788,0.00100001,4134.9,4134.8,4.07839666]
[1758597183013,0.00100001,4134.9,4134.8,3.41849666]
[1758597183186,0.00100001,4134.9,4134.8,3.84669666]
[1758597183399,0.00100001,4134.9,4134.8,4.07839666]
[1758597183931,0.00100001,4134.9,4134.8,7.10258162]
[1758597184133,0.00100001,4134.9,4134.8,7.07839666]
[1758597184296,0.00100001,4134.9,4134.8,3.41849666]
[1758597184923,0.00100001,4134.9,4134.8,1.0]
[1758597185120,0.1332513,4134.9,4134.8,1.0]
[1758597185322,0.1332513,4134.9,4134.8,3.41849666]
[1758597185523,0.1332513,4134.9,4134.8,1.0]
[1758597185836,0.1332513,4134.9,4134.8,3.41849666]
[1758597186398,0.00100001,4134.9,4134.8,11.88439666]
[1758597186595,0.001,4135.1,4134.8,11.88439666]
[1758597186596,0.001,4135.1,4135.0,2.41837968]
[1758597186998,0.001,4135.1,4135.0,6.07827968]
[1758597187195,0.001,4135.1,4135.0,6.87027968]
[1758597187727,0.001,4135.1,4135.0,6.07827968]
[1758597187927,0.001,4135.1,4135.0,10.21537968]
[1758597188425,0.001,4135.1,4135.0,6.07827968]
[1758597188627,0.001,4135.1,4135.0,10.87627968]
[1758597188827,0.001,4135.1,4135.0,10.99707968]
[1758597189196,0.001,4135.1,4135.0,6.19907968]
[1758597189396,0.001,4135.1,4135.0,6.07827968]
[1758597189606,0.13426633,4135.1,4135.0,5.41837968]
[1758597190102,0.13426633,4135.1,4135.0,6.41837968]
[1758597190324,0.13426633,4135.1,4135.0,5.41837968]
[1758597190909,0.13426633,4135.1,4135.0,6.41837968]
[1758597191116,0.13426633,4135.1,4135.0,5.41837968]
[1758597191736,0.13426633,4135.1,4135.0,1.0]
[1758597191934,0.13426633,4135.1,4135.0,3.41837968]
[1758597191935,0.3566528,4135.1,4135.0,3.41837968]
[1758597192134,0.3566528,4135.1,4135.0,1.0]
[1758597192536,0.3566528,4135.1,4135.0,3.41837968]
[1758597193404,0.3566528,4135.1,4135.0,1.0]
[1758597193601,1.1741581,4135.1,4135.0,1.0]
[1758597193819,1.1741581,4135.1,4134.6,0.004]
[1758597194018,1.0124581,4135.0,4134.9,1.0]
[1758597194506,1.0124581,4135.0,4134.6,0.004]
[1758597194507,1.1731581,4135.0,4134.6,0.004]
[1758597194714,0.8669581,4134.9,4134.6,0.004]
[1758597195016,0.8669581,4134.8,4134.6,2.42260124]
[1758597195206,0.8669581,4134.7,4134.6,2.42260124]
[1758597195538,0.8669581,4134.7,4134.6,3.42260124]
[1758597195743,0.8669581,4134.7,4134.6,2.42260124]
[1758597195944,0.8669581,4134.7,4134.6,0.004]
[1758597196107,1.03219786,4134.7,4134.6,0.004]
[1758597196307,1.0124581,4134.7,4134.6,0.004]
[1758597196733,0.8669581,4134.7,4134.6,0.004]
[1758597196916,0.8669581,4134.7,4134.6,2.42261365]
[1758597197129,0.8669581,4134.7,4134.6,2.66601365]
[1758597197331,0.3556528,4134.7,4134.6,2.66601365]
[1758597197713,0.3556528,4134.7,4134.6,2.42261365]
[1758597198134,0.3556528,4134.7,4134.6,3.11641365]
[1758597198508,0.3556528,4134.7,4134.6,2.42261365]
[1758597200119,0.86889631,4134.7,4134.6,2.42261365]
[1758597200924,0.73562998,4134.7,4134.6,2.42261365]
[1758597201124,0.86939987,4134.7,4134.6,2.42261365]
[1758597201347,0.86939987,4134.7,4134.6,3.42261365]
[1758597201948,0.86939987,4134.7,4134.6,2.42261365]
[1758597202526,0.86939987,4134.7,4134.6,3.42261365]
[1758597203473,0.86939987,4134.7,4134.6,1.004]
[1758597203842,1.51088071,4134.7,4134.6,1.004]
[1758597204035,1.51086779,4134.7,4134.6,3.42261365]
[1758597204238,0.86939987,4134.7,4134.6,3.42261365]
[1758597206333,1.51102719,4134.7,4134.6,3.42261365]
[1758597206529,0.86939987,4134.7,4134.6,3.42261365]
[1758597206771,0.86939987,4134.7,4134.6,4.11641365]
[1758597207873,0.001,4135.1,4135.0,3.41837968]
[1758597208055,0.51442657,4135.1,4135.0,3.41837968]
[1758597208232,0.51442657,4135.1,4135.0,4.11217968]
[1758597209270,0.001,4135.1,4135.0,4.11217968]
[1758597209442,0.001,4135.1,4135.0,3.11217968]
[1758597209652,0.001,4135.1,4135.0,2.41837968]
[1758597209958,0.51440507,4135.1,4135.0,2.41837968]
[1758597210467,0.51440507,4135.1,4135.0,3.41837968]
[1758597212765,0.51440507,4135.1,4134.8,2.41844308]
[1758597212949,0.51440507,4135.1,4134.9,2.41843817]
[1758597212950,0.51340507,4135.0,4134.9,2.41843817]
[1758597213151,0.51340507,4135.0,4134.9,3.41843817]
[1758597213381,0.001,4135.1,4135.0,2.41837968]
[1758597214879,0.001,4135.1,4135.0,3.13636347]
[1758597215049,0.001,4135.1,4135.0,3.11217968]
[1758597215250,0.001,4135.1,4135.0,3.13636347]
[1758597215477,0.001,4135.1,4135.0,3.25716347]
[1758597216680,0.001,4135.1,4135.0,2.53917968]
[1758597216883,0.001,4135.1,4135.0,7.19317968]
[1758597217082,0.001,4135.1,4135.0,7.88697968]
[1758597218993,0.001,4135.1,4135.0,3.23297968]
[1758597219194,0.001,4135.1,4135.0,7.89716347]
[1758597219396,0.001,4135.1,4135.0,7.87297968]
[1758597219599,0.001,4135.1,4135.0,7.17917968]
[1758597220279,0.001,4135.1,4135.0,7.87297968]
[1758597221394,1e-08,4135.4,4135.3,3.41820424]
[1758597221558,1e-08,4135.4,4135.3,11.86338628]
[1758597221758,1e-08,4135.4,4135.3,12.65380424]
[1758597222659,1e-08,4135.4,4135.3,8.02480424]
[1758597222859,1e-08,4135.4,4135.3,12.65280424]
[1758597223294,1e-08,4135.4,4135.3,12.53200424]
[1758597223663,1e-08,4135.4,4135.3,12.52900424]
[1758597224595,1e-08,4135.4,4135.3,7.90400424]
[1758597224754,1e-08,4135.4,4135.3,12.52300424]
[1758597225460,1e-08,4135.4,4135.3,12.52000424]
[1758597227169,0.001,4136.3,4136.2,3.41767806]
[1758597227693,1e-08,4136.9,4136.8,2.4173274]
[1758597227934,1e-08,4136.9,4136.8,8.0213274]
[1758597228083,1e-08,4136.9,4136.8,8.7150274]
[1758597228280,1e-08,4136.9,4136.8,12.5070274]
[1758597228691,1e-08,4136.9,4136.8,7.9030274]
[1758597228916,1e-08,4136.9,4136.8,11.4755274]
[1758597229223,1e-08,4136.9,4136.8,11.7180274]
[1758597231127,1e-08,4136.9,4136.8,5.4173274]
[1758597231612,1e-08,4136.9,4136.8,11.0183274]
[1758597232423,0.00100001,4136.9,4136.8,11.0183274]
[1758597232822,0.00100001,4136.9,4136.8,3.4173274]
[1758597233129,0.00100001,4136.9,4136.8,8.0103274]
[1758597233728,0.00100001,4136.9,4136.8,7.0093274]
[1758597234039,0.00100001,4136.9,4136.8,8.0093274]
[1758597234197,0.00100001,4136.9,4136.8,3.4173274]
[1758597234385,0.00100001,4136.9,4136.8,1.0]
[1758597234825,0.00100001,4136.9,4136.8,3.4173274]
[1758597237532,0.00100001,4136.9,4136.8,8.01750067]
[1758597237701,0.00100001,4136.9,4136.8,7.9933274]
[1758597238319,0.00100001,4136.9,4136.8,8.1141274]
[1758597239224,0.00100001,4136.9,4136.8,8.8078274]
[1758597239741,1e-08,4137.4,4137.3,4.20903526]
[1758597239891,1e-08,4137.4,4137.3,8.77203526]
[1758597240111,1e-08,4137.4,4137.3,12.58653526]
[1758597241832,3.63850001,4139.4,4138.7,1.0]
[1758597242035,0.1455,4139.5,4139.0,1.0]
[1758597242432,0.1455,4139.5,4139.4,2.41580905]
[1758597243227,0.1455,4139.5,4139.0,1.0]
[1758597243431,0.1455,4139.4,4139.0,1.0]
[1758597243629,0.1455,4139.3,4139.0,3.41603729]
[1758597243861,0.1455,4139.7,4139.1,2.41597772]
[1758597244061,0.26119615,4139.6,4139.0,1.02416042]
[1758597244369,0.001,4139.8,4139.0,3.41602315]
[1758597244572,0.001,4139.8,4139.1,2.41598415]
[1758597244922,0.001,4139.8,4139.5,2.41574172]
[1758597245435,0.001,4139.8,4139.7,1.0]
[1758597245634,0.001,4139.8,4139.7,3.41563398]
[1758597246315,0.001,4139.8,4139.7,7.96763398]
[1758597246716,0.001,4139.8,4139.7,5.552]
[1758597246956,0.001,4139.8,4139.7,7.96763398]
[1758597247157,0.001,4139.8,4139.7,3.41563398]
[1758597247754,0.001,4139.8,4139.7,7.96463398]
[1758597249266,0.001,4139.8,4139.7,7.96663398]
[1758597249964,0.001,4139.8,4139.7,7.96163398]
[1758597250169,0.1465,4139.8,4139.3,1.0]
[1758597250370,0.001,4139.8,4139.7,3.41563398]
[1758597250952,0.001,4139.8,4139.7,7.96163398]
[1758597251562,0.001,4139.8,4139.7,8.41283398]
[1758597251948,0.001,4139.8,4139.7,8.08163398]
[1758597252150,0.001,4139.8,4139.7,1.12]
[1758597252350,0.1465,4139.8,4139.4,1.0]
[1758597252551,0.1465,4139.8,4139.5,2.41575029]
[1758597252552,0.2655,4139.7,4139.5,2.41575029]
[1758597252769,0.12,4139.7,4139.4,1.0]
[1758597253484,0.12,4139.7,4139.4,3.4157906]
[1758597253681,0.12,4139.7,4139.4,8.40899115]
[1758597253886,0.12,4139.7,4139.6,2.41569233]
[1758597254087,0.001,4139.8,4139.7,3.41563398]
[1758597254286,0.001,4139.8,4139.7,3.43979031]
[1758597254655,0.001,4139.8,4139.7,4.01099031]
[1758597254852,0.001,4140.3,4140.2,3.41534225]
[1758597255155,0.001,4140.3,4140.2,7.95234225]
[1758597255349,0.001,4140.3,4140.2,8.65024225]
[1758597255788,0.001,4140.3,4140.2,7.95034225]
[1758597256091,0.001,4140.3,4140.2,6.94934225]
[1758597256277,0.001,4140.3,4140.2,8.62804225]
[1758597257153,0.001,4140.3,4140.2,7.62804225]
[1758597257488,0.001,4140.3,4140.2,8.62804225]
[1758597260300,0.001,4140.3,4140.2,6.93234225]
[1758597260590,0.001,4140.3,4140.2,8.61104225]
[1758597260890,0.001,4140.3,4140.2,9.40304225]
[1758597261665,0.001,4140.3,4140.2,12.40304225]
[1758597262962,0.001,4140.3,4140.2,12.39904225]
[1758597263285,0.001,4140.3,4140.2,14.48804225]
[1758597263598,0.001,4140.3,4140.2,6.41534225]
[1758597263764,0.001,4140.3,4140.2,13.68904225]
[1758597264774,0.001,4140.3,4140.2,13.80904225]
[1758597264994,0.001,4140.3,4140.2,6.53534225]
[1758597265199,0.001,4140.3,4140.2,34.39621464]
[1758597265364,0.001,4140.3,4140.2,14.47704225]
[1758597265797,0.51129668,4141.8,4140.6,2.41510892]
[1758597265977,1e-08,4140.9,4140.7,3.792]
[1758597266175,1e-08,4140.9,4140.8,10.70399227]
[1758597266381,0.02,4141.9,4141.8,3.41440919]
[1758597266575,1e-08,4141.9,4141.8,7.90940919]
[1758597266788,1e-08,4141.9,4141.8,8.58810919]
[1758597266990,1e-08,4141.9,4141.8,11.58810919]
[1758597267298,1e-08,4141.9,4141.8,12.38010919]
[1758597268381,1e-08,4141.9,4141.8,14.46810919]
[1758597269103,1e-08,4141.9,4141.8,7.88510919]
[1758597269271,0.02,4143.9,4143.8,2.41324388]
[1758597269600,0.15325617,4143.9,4143.8,7.91024388]
[1758597269804,0.02,4143.9,4143.8,3.41324388]
[1758597269989,0.1665,4143.9,4143.5,1.0]
[1758597270199,0.1465,4143.8,4143.6,0.0241336]
[1758597270394,0.1455,4143.8,4143.6,0.0241336]
[1758597270566,0.1455,4143.7,4143.5,5.496]
[1758597270906,0.1465,4143.6,4143.5,1.0]
[1758597271265,0.1465,4143.6,4142.4,3.0]
[1758597271266,0.63995519,4143.7,4143.6,1.0]
[1758597271466,0.77311512,4143.7,4143.6,1.0]
[1758597272003,0.27865993,4143.7,4143.6,1.0]
[1758597272209,0.1455,4143.7,4143.6,1.0]
[1758597272384,0.1455,4143.7,4143.6,3.41336036]
[1758597272594,0.1455,4143.7,4143.6,1.0]
[1758597273268,0.1455,4143.7,4143.6,3.41336036]
[1758597273467,0.1455,4143.7,4143.3,6.90552023]
[1758597273468,0.78645519,4143.7,4143.1,1.0]
[1758597273708,0.78645519,4143.7,4142.0,0.6787]
[1758597273709,0.63995519,4143.5,4143.4,1.0]
[1758597273867,0.27958556,4143.5,4143.4,1.0]
[1758597274506,0.27858556,4143.5,4143.4,1.0]
[1758597274710,0.63995519,4143.7,4143.4,1.0]
[1758597274909,0.63995519,4143.7,4143.1,4.483]
[1758597274910,0.91853875,4143.6,4143.1,1.0]
[1758597275075,0.13308356,4143.5,4143.1,3.41364828]
[1758597275275,0.12,4143.3,4143.2,2.41358431]
[1758597276121,0.63995519,4143.6,4143.1,1.0]
[1758597276488,0.001,4143.8,4142.9,4.477]
[1758597276489,0.63995519,4143.8,4143.7,2.41330212]
[1758597276709,0.77304896,4143.8,4143.7,2.41330212]
[1758597277020,0.02,4143.9,4143.8,2.41324388]
[1758597277372,0.1655,4143.9,4143.7,1.0]
[1758597277780,0.02,4143.9,4143.7,1.0]
[1758597277980,0.1465,4143.8,4143.2,2.41356807]
[1758597278200,0.63881394,4143.7,4143.1,1.0]
[1758597278380,0.64412626,4143.6,4143.4,3.41345658]
[1758597278710,0.51105435,4143.5,4143.4,1.0]
[1758597278910,0.51105435,4143.5,4143.4,3.41347685]
[1758597279814,0.51105435,4143.5,4143.4,3.43761161]
[1758597280014,0.02,4143.9,4143.7,1.0]
[1758597280309,0.51115553,4143.8,4143.7,3.41330212]
[1758597282295,0.65665553,4143.8,4143.7,3.41330212]
[1758597282694,0.51115553,4143.8,4143.7,3.41330212]
[1758597284231,0.64441207,4143.8,4143.7,3.41330212]
[1758597285336,0.64441207,4143.8,4143.7,1.0]
[1758597285735,1.01300867,4143.8,4143.1,1.0]
[1758597286041,0.86650867,4143.7,4143.5,1.0]
[1758597286198,0.86657544,4143.6,4143.5,1.0]
[1758597286700,0.86657544,4143.6,4143.5,3.4134186]
[1758597286901,0.64441207,4143.6,4143.5,4.0928186]
[1758597287103,0.51115553,4143.6,4143.5,4.0928186]
[1758597288838,0.021,4143.9,4143.5,4.0928186]
[1758597288839,0.021,4143.9,4143.8,2.41324388]
[1758597289043,0.021,4143.9,4143.8,7.87937631]
[1758597289343,0.021,4143.9,4143.8,11.53464388]
[1758597291198,0.021,4143.9,4143.8,7.09264388]
[1758597291430,0.021,4143.9,4143.8,4.09264388]
[1758597291637,0.53351079,4143.9,4143.8,8.52664388]
[1758597292501,0.53351079,4143.9,4143.8,7.84724388]
[1758597292915,0.53351079,4143.9,4143.8,8.52664388]
[1758597293120,0.021,4143.9,4143.8,8.52664388]
[1758597294223,0.021,4143.9,4143.8,4.09264388]
[1758597294431,0.53430909,4143.9,4143.8,10.60564388]
[1758597295436,0.53430909,4143.9,4143.8,4.09264388]
[1758597295636,0.53430909,4143.9,4143.8,8.51564388]
[1758597295832,0.53484465,4143.9,4143.8,8.51564388]
[1758597296033,0.021,4143.9,4143.8,8.51564388]
[1758597296654,0.53528475,4143.9,4143.8,10.60064388]
[1758597296954,0.021,4143.9,4143.8,10.60064388]
[1758597297355,0.021,4143.9,4143.8,10.59864388]
[1758597297560,0.021,4143.9,4143.8,11.39064388]
[1758597297719,1e-08,4143.9,4143.8,7.09264388]
[1758597297923,1e-08,4143.9,4143.8,13.59664388]
[1758597298951,1e-08,4143.9,4143.8,7.21264388]
[1758597299160,1e-08,4143.9,4143.8,6.53324388]
[1758597299324,1e-08,4143.9,4143.8,13.03324388]
[1758597300056,0.5143288,4143.9,4143.8,3.53324388]
[1758597300272,0.5143288,4143.9,4143.8,7.94324388]
[1758597300431,0.5143288,4143.9,4143.8,3.53324388]
[1758597300632,1.0169569,4143.9,4143.8,3.41324388]
[1758597300821,1.0169569,4143.9,4143.8,7.82224388]
[1758597301281,1.0169569,4143.9,4143.8,1.0]
[1758597301482,1.65782522,4143.9,4143.8,3.41324388]
[1758597301630,1.65782522,4143.9,4143.8,1.0]
[1758597301829,2.11883231,4143.9,4143.2,1.0]
[1758597302030,1.01695689,4143.8,4143.7,1.0]
[1758597302224,1.87427093,4143.8,4143.7,1.0]
[1758597302457,1.72877093,4143.8,4143.7,1.0]
[1758597302658,0.87145689,4143.8,4143.7,7.81830212]
[1758597302838,0.64825643,4143.8,4143.7,8.61770212]
[1758597303147,1e-08,4143.9,4143.8,2.41324388]
[1758597303535,1e-08,4143.9,4143.8,6.88464388]
[1758597304066,1e-08,4143.9,4143.8,10.50264388]
[1758597304738,1e-08,4143.9,4143.8,2.41324388]
[1758597304926,1e-08,4143.9,4143.8,6.82224388]
[1758597305326,0.14550001,4143.9,4143.0,0.6794]
[1758597305558,0.14550001,4143.9,4143.8,3.41324388]
[1758597305858,0.14650001,4143.9,4143.6,6.82133472]
[1758597306060,0.1455,4143.8,4143.7,3.41328159]
[1758597306261,1e-08,4143.9,4143.8,3.41324388]
[1758597306446,1e-08,4143.9,4143.8,8.52477631]
[1758597310177,0.02,4145.9,4145.8,7.51047969]
[1758597310364,1e-08,4145.9,4145.8,8.30247969]
[1758597310546,1e-08,4145.9,4145.8,6.88347969]
[1758597310878,1e-08,4145.9,4145.8,13.38447969]
[1758597312097,1e-08,4145.9,4145.8,13.38347969]
[1758597312977,1e-08,4145.9,4145.8,13.50347969]
[1758597313293,1e-08,4145.9,4145.8,7.00347969]
[1758597313477,1e-08,4145.9,4145.8,13.50347969]
[1758597314876,1e-08,4145.9,4145.8,13.37947969]
[1758597315277,1e-08,4146.9,4146.8,1.792]
[1758597315475,1e-08,4146.9,4146.8,13.70549802]
[1758597315693,0.14550001,4148.9,4147.8,4.20291663]
[1758597315994,0.1455,4148.5,4147.8,7.82891663]
[1758597316767,0.1455,4148.5,4147.8,3.41091663]
[1758597316992,1e-08,4148.9,4147.8,1.0]
[1758597317180,0.14550001,4147.9,4147.8,5.417]
[1758597317384,1e-08,4147.9,4147.8,5.417]
[1758597317581,0.14550001,4147.9,4147.8,1.0]
[1758597317898,0.16850001,4147.9,4147.8,1.0]
[1758597318069,0.16850001,4147.9,4146.5,0.2363]
[1758597318070,0.16850001,4147.9,4147.5,4.436]
[1758597318269,1e-08,4147.9,4147.8,1.0]
[1758597318778,0.16850001,4147.9,4147.8,1.0]
[1758597318979,0.16850001,4147.9,4147.5,3.436]
[1758597319186,0.023,4147.8,4147.5,1.0]
[1758597319388,0.023,4147.7,4147.5,1.0]
[1758597319804,0.1685,4147.7,4147.5,3.41106057]
[1758597319992,0.1455,4147.7,4147.5,1.0]
[1758597320174,1e-08,4147.9,4147.5,5.416]
[1758597320588,1e-08,4147.9,4147.8,3.41091663]
[1758597320796,1e-08,4147.9,4147.8,7.85102579]
[1758597320982,1e-08,4147.9,4147.8,7.82691663]
[1758597321702,0.00100001,4147.9,4147.8,7.82691663]
[1758597322414,0.00100001,4147.9,4147.8,3.41091663]
[1758597322614,0.00100001,4147.9,4147.8,7.82791663]
[1758597322840,0.00100001,4147.9,4147.8,7.82691663]
[1758597323624,0.00100001,4147.9,4147.5,3.0]
[1758597323835,0.00100001,4147.9,4147.8,3.41091663]
[1758597324000,0.00100001,4147.9,4147.8,7.82491663]
[1758597324181,0.00100001,4147.9,4147.8,6.82391663]
[1758597325481,0.00100001,4147.9,4147.8,1.0]
[1758597325702,0.14650001,4147.9,4147.8,1.0]
[1758597326309,0.14650001,4147.9,4147.8,3.41091663]
[1758597326510,0.00100001,4147.9,4147.8,3.41091663]
[1758597327417,0.00100001,4147.9,4147.8,3.43502579]
[1758597327619,0.00100001,4147.9,4147.8,3.41091663]
[1758597329253,0.00100001,4147.9,4147.8,3.43502579]
[1758597329450,0.00100001,4147.9,4147.8,3.41091663]
[1758597329634,0.00100001,4147.9,4147.8,3.43502579]
[1758597330152,0.00100001,4147.9,4147.8,4.09511663]
[1758597330333,0.00100001,4147.9,4147.8,7.88711663]
[1758597333509,0.00100001,4147.9,4147.8,14.36011663]
[1758597334183,0.00100001,4147.9,4147.8,7.88711663]
[1758597334886,0.00100001,4147.9,4147.8,34.20826608]
[1758597335787,0.00100001,4147.9,4147.8,6.20291663]
[1758597336078,0.00100001,4147.9,4147.8,10.58491663]
[1758597336283,0.00100001,4147.9,4147.8,13.66991663]
[1758597336490,0.00100001,4147.9,4147.8,2.41091663]
[1758597336651,0.00100001,4147.9,4147.8,6.79391663]
[1758597336850,0.14650001,4147.9,4147.8,9.79391663]
[1758597337173,0.22362111,4147.9,4147.8,10.79291663]
[1758597337547,0.00100001,4147.9,4147.8,10.79291663]
[1758597338187,0.00100001,4147.9,4147.8,10.91291663]
[1758597338396,0.22380253,4147.9,4147.8,10.91291663]
[1758597338994,0.22380253,4147.9,4147.8,10.90591663]
[1758597339657,0.22380253,4147.9,4147.8,5.53091663]
[1758597339956,0.36930253,4147.9,4147.8,7.78391663]
[1758597340160,0.88282275,4147.9,4147.8,7.78391663]
[1758597340745,0.88282275,4147.9,4147.8,3.41091663]
[1758597340949,0.88282275,4147.9,4147.8,7.77991663]
[1758597341697,0.88282275,4147.9,4147.8,1.0]
[1758597341896,1.19409916,4147.9,4147.8,1.0]
[1758597342100,1.83213473,4147.9,4147.8,1.0]
[1758597342399,2.0514132,4147.9,4147.3,1.12]
[1758597342607,0.64271797,4147.5,4146.7,2.53154851]
[1758597342761,0.64264358,4147.1,4146.8,2.517]
[1758597342963,0.64264358,4146.9,4146.8,2.517]
[1758597343180,1.6583569,4146.9,4146.8,0.004]
[1758597343388,1.93522399,4146.9,4146.8,0.004]
[1758597343668,1.29258041,4146.9,4146.8,0.004]
[1758597344399,2.14858366,4146.9,4146.8,0.004]
[1758597345384,1.29258041,4146.9,4146.8,0.004]
[1758597345900,2.14841866,4146.9,4146.8,0.004]
[1758597346108,2.14849502,4146.9,4146.8,0.004]
[1758597346313,1.29265677,4146.9,4146.8,0.004]
[1758597346985,1.29242128,4146.9,4146.8,0.004]
[1758597347802,2.14820913,4146.9,4146.8,0.004]
[1758597347989,1.29237088,4146.9,4146.8,0.004]
[1758597348386,2.14697101,4146.9,4146.8,0.004]
[1758597348575,6.50697101,4146.9,4146.8,0.004]
[1758597349689,6.50697101,4146.9,4146.3,0.004]
[1758597349690,0.792,4146.8,4146.3,0.004]
[1758597349995,22.2628801,4146.4,4146.3,0.004]
[1758597350324,26.9870767,4146.4,4146.3,0.004]
[1758597350522,26.9870767,4146.4,4145.1,0.02]
[1758597350523,2.41179158,4146.3,4145.1,0.02]
[1758597350724,19.85114945,4145.8,4145.1,0.02]
[1758597350930,0.87000379,4145.7,4145.1,0.02]
[1758597351133,0.22287888,4145.6,4145.1,3.43248533]
[1758597351338,0.22287888,4145.5,4145.1,1.02]
[1758597351641,0.22287888,4145.4,4145.1,3.4324569]
[1758597351807,0.22287888,4145.3,4145.2,2.41240395]
[1758597352122,0.22287888,4145.8,4145.7,2.41213787]
[1758597352536,0.1455,4146.4,4145.6,1.0]
[1758597352698,0.22206142,4146.3,4145.3,1.0]
[1758597352884,0.12,4145.6,4145.4,2.4123037]
[1758597353088,0.12,4145.6,4145.5,2.41225425]
[1758597353593,0.12,4145.6,4145.5,3.07275425]
[1758597353815,0.12,4145.6,4145.5,2.84275425]
[1758597354019,0.22206142,4146.2,4146.0,2.41196314]
[1758597354226,0.12,4146.1,4146.0,2.41196314]
[1758597354605,0.12,4146.1,4146.0,2.41196333]
[1758597355807,0.12,4146.1,4145.7,1.0]
[1758597356001,0.12,4145.8,4145.4,1.0]
[1758597356196,0.12,4145.8,4145.7,1.0]
[1758597356602,0.12,4145.8,4145.3,1.0]
[1758597356806,0.12,4145.8,4145.3,3.41235826]
[1758597357042,0.22180121,4146.3,4145.6,1.0]
[1758597357203,0.12,4145.4,4145.2,3.41237245]